bitfinex-derivatives/quotes_BNBF0:USTF0_20250424
["timestamp","ask_amount","ask_price","bid_price","bid_amount"]
[1745510322730,0.26969614,599.65,598.15,2.971]
[1745510322933,0.26969614,599.64,598.15,2.971]
[1745510323125,0.26969614,599.65,598.15,2.971]
[1745510323329,0.26969614,599.64,598.15,2.971]
[1745510323526,0.26969614,599.65,598.15,2.971]
[1745510323731,0.26969614,599.64,598.15,2.971]
[1745510323929,0.29067946,599.66,598.15,2.971]
[1745510323930,0.26969614,599.63,598.15,2.971]
[1745510324133,0.26969614,599.65,598.15,2.971]
[1745510324332,0.26969614,599.64,598.15,2.971]
[1745510324631,0.26969614,599.63,598.15,2.971]
[1745510324832,0.29068068,599.63,598.15,2.971]
[1745510325029,0.26969614,599.62,598.15,2.971]
[1745510328232,0.29068068,599.63,598.15,2.971]
[1745510328426,0.26940131,599.62,598.15,2.971]
[1745510333834,0.26940131,599.94,598.15,2.971]
[1745510334031,0.29065519,599.61,598.15,2.971]
[1745510334233,0.26940131,599.6,598.15,2.971]
[1745510334429,0.26940131,599.94,598.15,2.971]
[1745510334730,0.26940131,599.93,598.15,2.971]
[1745510334929,0.26940131,599.94,598.15,2.971]
[1745510335233,0.26940131,599.93,598.15,2.971]
[1745510335434,0.26940131,599.94,598.15,2.971]
[1745510335629,0.56004436,599.93,598.15,2.971]
[1745510335935,0.26940131,599.92,598.15,2.971]
[1745510336333,0.26940131,599.91,598.15,2.971]
[1745510336532,0.26940131,599.9,598.15,2.971]
[1745510336731,0.26940131,599.89,598.15,2.971]
[1745510337031,0.26940131,599.88,598.15,2.971]
[1745510337236,0.26940131,599.87,598.15,2.971]
[1745510337436,0.26940131,599.86,598.15,2.971]
[1745510337732,0.26958614,599.85,598.15,2.971]
[1745510338036,0.26958614,599.84,598.15,2.971]
[1745510338330,0.26958614,599.83,598.15,2.971]
[1745510338534,0.26958614,599.89,598.15,2.971]
[1745510338727,0.26958614,599.88,598.15,2.971]
[1745510338928,0.26958614,599.89,598.15,2.971]
[1745510339734,0.26958614,599.88,598.15,2.971]
[1745510339935,0.29064426,599.88,598.15,2.971]
[1745510340134,0.26958614,599.87,598.15,2.971]
[1745510340633,0.29064426,599.88,598.15,2.971]
[1745510340832,0.26963102,599.87,598.15,2.971]
[1745510341835,0.26970235,599.86,598.15,2.971]
[1745510342135,0.26970235,599.85,598.15,2.971]
[1745510342436,0.26970235,599.84,598.15,2.971]
[1745510342636,1.27075748,599.94,598.15,2.971]
[1745510342931,0.26970235,599.93,598.15,2.971]
[1745510343337,1.27075748,599.94,598.15,2.971]
[1745510343532,0.2696998,599.93,598.15,2.971]
[1745510344838,1.54045728,599.93,598.15,2.971]
[1745510345033,0.2696998,599.92,598.15,2.971]
[1745510345539,0.2696998,599.91,598.15,2.971]
[1745510345839,0.2696998,599.9,598.15,2.971]
[1745510346036,0.2696998,599.89,598.15,2.971]
[1745510346237,0.2696998,599.88,598.15,2.971]
[1745510346437,1.27075748,599.93,598.15,2.971]
[1745510346636,0.26963863,599.92,598.15,2.971]
[1745510346838,0.26963863,599.91,598.15,2.971]
[1745510347038,0.26963863,599.9,598.15,2.971]
[1745510347338,0.26963863,599.89,598.15,2.971]
[1745510347533,1.27075748,599.79,598.15,2.971]
[1745510347737,0.26963863,599.78,598.15,2.971]
[1745510347933,0.26963863,599.77,598.15,2.971]
[1745510348137,0.26957324,599.76,598.15,2.971]
[1745510348337,0.26957324,599.75,598.15,2.971]
[1745510348533,0.26957324,599.74,598.15,2.971]
[1745510348739,0.26957324,599.73,598.15,2.971]
[1745510348938,0.26957324,599.72,598.15,2.971]
[1745510349139,0.26957324,599.71,598.15,2.971]
[1745510349341,0.26957324,599.7,598.15,2.971]
[1745510349641,0.26957724,599.69,598.15,2.971]
[1745510349835,0.26957724,599.68,598.15,2.971]
[1745510350141,0.26957724,599.67,598.15,2.971]
[1745510350340,0.26957724,599.7,598.15,2.971]
[1745510350538,0.26957724,599.69,598.15,2.971]
[1745510350736,0.26957724,599.7,598.15,2.971]
[1745510350936,0.26957724,599.69,598.15,2.971]
[1745510351142,1.27075748,599.71,598.15,2.971]
[1745510351450,0.26969251,599.7,598.15,2.971]
[1745510353343,0.26969251,599.69,598.15,2.971]
[1745510353545,0.26969251,599.68,598.15,2.971]
[1745510353844,0.26969251,599.67,598.15,2.971]
[1745510354038,0.26969251,599.66,598.15,2.971]
[1745510354243,1.27075748,599.71,598.15,2.971]
[1745510354439,0.26958644,599.7,598.15,2.971]
[1745510354639,0.26958644,599.69,598.15,2.971]
[1745510354839,0.26958644,599.68,598.15,2.971]
[1745510355143,0.26958644,599.67,598.15,2.971]
[1745510355343,0.26958644,599.66,598.15,2.971]
[1745510355544,0.26958644,599.65,598.15,2.971]
[1745510355746,0.26958644,599.64,598.15,2.971]
[1745510356046,1.27075748,599.58,598.15,2.971]
[1745510356247,0.26958644,599.57,598.15,2.971]
[1745510357445,1.27075748,599.58,598.15,2.971]
[1745510357646,0.26953542,599.56,598.15,2.971]
[1745510357846,0.26953542,599.55,598.15,2.971]
[1745510358145,0.26953542,599.54,598.15,2.971]
[1745510358339,0.26953542,599.53,598.15,2.971]
[1745510358542,0.26953542,599.57,598.15,2.971]
[1745510358740,1.27075748,599.64,598.15,2.971]
[1745510358741,0.26953542,599.56,598.15,2.971]
[1745510358940,0.26953542,599.55,598.15,2.971]
[1745510359246,0.26953542,599.54,598.15,2.971]
[1745510359445,0.26953542,599.53,598.15,2.971]
[1745510359640,0.26953542,599.52,598.15,2.971]
[1745510359841,0.26953542,599.51,598.15,2.971]
[1745510360045,0.26953542,599.5,598.15,2.971]
[1745510360248,0.26953542,599.49,598.15,2.971]
[1745510360448,0.26953542,599.48,598.15,2.971]
[1745510360649,1.27075748,599.64,598.15,2.971]
[1745510360849,0.26962673,599.63,598.15,2.971]
[1745510361149,1.27075748,599.54,598.15,2.971]
[1745510361344,0.26962673,599.53,598.15,2.971]
[1745510363544,0.26962673,599.52,598.15,2.971]
[1745510363749,0.26962673,599.62,598.15,2.971]
[1745510363948,0.26962673,599.51,598.15,2.971]
[1745510364145,0.26962673,599.5,598.15,2.971]
[1745510364344,0.26962673,599.62,598.15,2.971]
[1745510365550,0.26975083,599.61,598.15,2.971]
[1745510365745,0.26975083,599.71,598.15,2.971]
[1745510365945,0.26975083,599.7,598.15,2.971]
[1745510366147,0.26975083,599.69,598.15,2.971]
[1745510366347,0.26975083,599.68,598.15,2.971]
[1745510366548,0.26975083,599.67,598.15,2.971]
[1745510366745,0.26975083,599.66,598.15,2.971]
[1745510366945,0.26975083,599.65,598.15,2.971]
[1745510367250,0.26975083,599.64,598.15,2.971]
[1745510367450,0.26975083,599.63,598.15,2.971]
[1745510367651,0.26975083,599.62,598.15,2.971]
[1745510367846,0.26975083,599.61,598.15,2.971]
[1745510368048,0.26975083,599.6,598.15,2.971]
[1745510368245,0.26975083,599.59,598.15,2.971]
[1745510368450,0.26975083,599.58,598.15,2.971]
[1745510368646,1.27075748,599.72,598.15,2.971]
[1745510368953,1.27075748,599.55,598.15,2.971]
[1745510369153,0.26966531,599.54,598.15,2.971]
[1745510369352,0.26966531,599.53,598.15,2.971]
[1745510369549,0.26966531,599.52,598.15,2.971]
[1745510369853,0.26966531,599.51,598.15,2.971]
[1745510370054,0.26966531,599.5,598.15,2.971]
[1745510370349,0.26966531,599.49,598.15,2.971]
[1745510370555,0.26966531,599.48,598.15,2.971]
[1745510370756,0.26966531,599.47,598.15,2.971]
[1745510370951,0.26966531,599.46,598.15,2.971]
[1745510371152,0.26966531,599.45,598.15,2.971]
[1745510371355,0.26966531,599.44,598.15,2.971]
[1745510371553,0.26966531,599.43,598.15,2.971]
[1745510371755,0.26966531,599.42,598.15,2.971]
[1745510371955,0.26966531,599.41,598.15,2.971]
[1745510372256,0.26966531,599.4,598.15,2.971]
[1745510372453,0.26966531,599.39,598.15,2.971]
[1745510372657,0.26966531,599.38,598.15,2.971]
[1745510372956,0.26966531,599.37,598.15,2.971]
[1745510373152,0.26966531,599.36,598.15,2.971]
[1745510373357,1.27075748,599.46,598.15,2.971]
[1745510373558,0.26960984,599.45,598.15,2.971]
[1745510373759,0.26960984,599.44,598.15,2.971]
[1745510373957,0.26960984,599.43,598.15,2.971]
[1745510374258,0.26960984,599.42,598.15,2.971]
[1745510374457,0.26960984,599.41,598.15,2.971]
[1745510374658,0.26960984,599.4,598.15,2.971]
[1745510374954,1.27075748,599.53,598.15,2.971]
[1745510375157,0.26960911,599.52,598.15,2.971]
[1745510375359,0.26960911,599.51,598.15,2.971]
[1745510375558,0.26960911,599.5,598.15,2.971]
[1745510375860,0.26960911,599.49,598.15,2.971]
[1745510376060,0.26960911,599.52,598.15,2.971]
[1745510376258,0.26960911,599.51,598.15,2.971]
[1745510376564,0.26960911,599.5,598.15,2.971]
[1745510378060,1.27075748,599.51,598.15,2.971]
[1745510378260,0.26959597,599.5,598.15,2.971]
[1745510379764,0.26959597,599.49,598.15,2.971]
[1745510379965,0.26959597,599.48,598.15,2.971]
[1745510380160,0.26959597,599.73,598.15,2.971]
[1745510380362,0.26959597,599.72,598.15,2.971]
[1745510380559,0.26959597,599.73,598.15,2.971]
[1745510380865,0.26959597,599.72,598.15,2.971]
[1745510381163,0.26959597,599.71,598.15,2.971]
[1745510381361,0.26959597,599.7,598.15,2.971]
[1745510381560,0.26959597,599.73,598.15,2.971]
[1745510381763,0.26959597,599.72,598.15,2.971]
[1745510382064,0.26959597,599.71,598.15,2.971]
[1745510382359,0.26959597,599.7,598.15,2.971]
[1745510382563,0.26959597,599.69,598.15,2.971]
[1745510382766,0.26959597,599.87,598.15,2.971]
[1745510382963,0.26959597,599.86,598.15,2.971]
[1745510383164,0.26959597,599.85,598.15,2.971]
[1745510383366,0.26959597,599.84,598.15,2.971]
[1745510383566,0.26959597,599.83,598.15,2.971]
[1745510383763,0.26959597,599.82,598.15,2.971]
[1745510383966,0.26959597,599.81,598.15,2.971]
[1745510384165,0.26959597,599.8,598.15,2.971]
[1745510384364,0.26959597,599.79,598.15,2.971]
[1745510384667,0.26959597,599.78,598.15,2.971]
[1745510384963,0.26959597,599.77,598.15,2.971]
[1745510385267,0.26959597,599.76,598.15,2.971]
[1745510385467,0.26959597,599.75,598.15,2.971]
[1745510385666,0.26959597,599.74,598.15,2.971]
[1745510385866,1.27075748,599.83,598.15,2.971]
[1745510386066,0.26968174,599.82,598.15,2.971]
[1745510386266,0.26968174,599.81,598.15,2.971]
[1745510386460,0.26968174,599.8,598.15,2.971]
[1745510386665,0.26968174,599.79,598.15,2.971]
[1745510386862,1.27075748,599.77,598.15,2.971]
[1745510387066,0.26968174,599.76,598.15,2.971]
[1745510387266,0.26968174,599.75,598.15,2.971]
[1745510387464,0.26968174,599.74,598.15,2.971]
[1745510387766,0.26968174,599.73,598.15,2.971]
[1745510387970,0.26968174,599.72,598.15,2.971]
[1745510388172,0.26968174,599.71,598.15,2.971]
[1745510388371,0.26968174,599.7,598.15,2.971]
[1745510388568,0.26968174,599.69,598.15,2.971]
[1745510388871,0.26968174,599.68,598.15,2.971]
[1745510389172,0.26968341,599.67,598.15,2.971]
[1745510389371,0.26968341,599.66,598.15,2.971]
[1745510389569,0.26968341,599.65,598.15,2.971]
[1745510389766,0.26968341,599.64,598.15,2.971]
[1745510389973,0.26968341,599.63,598.15,2.971]
[1745510390168,0.26968341,599.62,598.15,2.971]
[1745510390374,0.26968341,599.61,598.15,2.971]
[1745510390567,0.26968341,599.82,598.15,2.971]
[1745510390768,0.26968341,599.81,598.15,2.971]
[1745510390970,0.26968341,599.8,598.15,2.971]
[1745510391269,0.26968341,599.79,598.15,2.971]
[1745510391474,0.26968341,599.82,598.15,2.971]
[1745510391674,0.26968341,599.81,598.15,2.971]
[1745510391871,0.26968341,599.8,598.15,2.971]
[1745510392169,0.26969132,599.79,598.15,2.971]
[1745510392375,0.26969132,599.78,598.15,2.971]
[1745510392669,0.26969132,599.77,598.15,2.971]
[1745510392868,0.26969132,599.92,598.15,2.971]
[1745510393070,0.26969132,599.91,598.15,2.971]
[1745510393274,0.26969132,599.9,598.15,2.971]
[1745510393476,0.26969132,599.89,598.15,2.971]
[1745510393678,1.27075748,599.93,598.15,2.971]
[1745510393874,0.26975405,599.92,598.15,2.971]
[1745510394078,0.26975405,599.91,598.15,2.971]
[1745510394279,0.26975405,599.9,598.15,2.971]
[1745510394473,0.26975405,599.89,598.15,2.971]
[1745510394674,0.26975405,599.88,598.15,2.971]
[1745510394878,0.26975405,599.87,598.15,2.971]
[1745510395080,2.16205266,600.66,598.15,2.971]
[1745510395081,0.26975405,599.86,598.15,2.971]
[1745510395277,1.27075748,600.07,598.15,2.971]
[1745510395477,0.26978849,600.06,598.15,2.971]
[1745510395682,0.26978849,600.05,598.15,2.971]
[1745510395981,0.26978849,600.04,598.15,2.971]
[1745510396177,0.26978849,600.03,598.15,2.971]
[1745510396382,0.26978849,600.02,598.15,2.971]
[1745510396583,0.26978849,600.01,598.15,2.971]
[1745510396780,0.26978849,600.0,598.15,2.971]
[1745510396983,0.26978849,599.99,598.15,2.971]
[1745510397283,0.26978849,599.98,598.15,2.971]
[1745510397483,1.27075748,600.03,598.15,2.971]
[1745510397484,0.26978849,599.97,598.15,2.971]
[1745510397784,0.26978849,599.96,598.15,2.971]
[1745510397984,0.26978849,599.95,598.15,2.971]
[1745510398186,0.26978849,599.94,598.15,2.971]
[1745510398389,1.27075748,600.03,598.15,2.971]
[1745510398688,0.27002382,600.02,598.15,2.971]
[1745510398886,0.27002382,600.01,598.15,2.971]
[1745510399083,0.27002382,600.0,598.15,2.971]
[1745510399287,0.27002382,599.99,598.15,2.971]
[1745510399582,0.27002382,599.98,598.15,2.971]
[1745510399787,0.27002382,599.97,598.15,2.971]
[1745510399988,0.27002382,599.96,598.15,2.971]
[1745510400791,1.27075748,600.03,598.15,2.971]
[1745510401390,0.27000845,600.02,598.15,2.971]
[1745510402085,0.27000845,600.01,598.15,2.971]
[1745510402284,0.27000845,600.0,598.15,2.971]
[1745510402585,1.27075748,600.09,598.15,2.971]
[1745510402586,0.27000845,599.99,598.15,2.971]
[1745510402784,1.27075748,600.09,598.15,2.971]
[1745510402987,0.26997293,600.08,598.15,2.971]
[1745510403284,0.26997293,600.07,598.15,2.971]
[1745510403485,0.26997293,600.06,598.15,2.971]
[1745510403689,0.26997293,600.05,598.15,2.971]
[1745510403886,0.26997293,600.04,598.15,2.971]
[1745510404088,1.27075748,600.09,598.15,2.971]
[1745510404089,0.26997293,600.03,598.15,2.971]
[1745510404285,0.26997293,600.02,598.15,2.971]
[1745510404488,0.26997293,600.01,598.15,2.971]
[1745510404689,0.26997293,600.0,598.15,2.971]
[1745510404887,0.26997293,599.99,598.15,2.971]
[1745510405086,0.26997293,599.98,598.15,2.971]
[1745510405388,0.26997293,599.97,598.15,2.971]
[1745510405589,0.26997293,599.96,598.15,2.971]
[1745510405786,0.26997293,599.95,598.15,2.971]
[1745510405983,0.26997293,599.94,598.15,2.971]
[1745510406188,0.26997293,599.93,598.15,2.971]
[1745510406485,0.26997293,599.92,598.15,2.971]
[1745510406689,0.26997293,599.91,598.15,2.971]
[1745510406990,0.26997293,599.9,598.15,2.971]
[1745510407190,0.26997293,599.89,598.15,2.971]
[1745510407387,0.26997293,599.88,598.15,2.971]
[1745510407588,0.26997293,599.87,598.15,2.971]
[1745510407888,1.27075748,600.09,598.15,2.971]
[1745510408491,0.27002194,600.08,598.15,2.971]
[1745510408692,0.27002194,600.07,598.15,2.971]
[1745510408987,0.27002194,600.06,598.15,2.971]
[1745510409290,0.27002194,600.05,598.15,2.971]
[1745510409587,0.27002194,600.04,598.15,2.971]
[1745510409790,0.27002194,600.08,598.15,2.971]
[1745510409990,0.27002194,600.07,598.15,2.971]
[1745510410287,0.27002194,600.06,598.15,2.971]
[1745510410492,0.27002194,600.08,598.15,2.971]
[1745510411194,0.26998414,600.07,598.15,2.971]
[1745510411395,0.26998414,600.06,598.16,0.30681358]
[1745510411594,0.26998414,600.05,598.16,0.30681358]
[1745510411792,0.26998414,600.04,598.16,0.30681358]
[1745510411996,0.26998414,600.03,596.85,1.06177866]
[1745510412195,0.26998414,600.02,596.86,0.30681353]
[1745510412394,0.26998414,600.01,596.87,0.30681353]
[1745510412592,0.26998414,600.0,596.88,0.30681353]
[1745510412897,0.26997436,599.99,596.89,0.30681363]
[1745510413194,0.26997436,599.98,596.9,0.30681363]
[1745510413493,0.26997436,599.97,596.91,0.30681363]
[1745510413691,0.26997436,600.08,596.92,0.30681363]
[1745510413893,0.26997436,600.07,596.93,0.30681363]
[1745510414096,0.26997436,600.06,596.94,0.30681363]
[1745510414394,0.26997436,600.05,596.95,1.13181363]
[1745510414593,0.26997436,600.04,596.96,0.30681363]
[1745510414793,0.26997436,600.03,596.97,0.30681363]
[1745510414995,0.26997436,600.02,596.98,0.30681363]
[1745510415193,0.26997436,600.01,596.99,0.30681363]
[1745510415392,0.26997436,600.0,596.99,0.30681363]
[1745510415692,0.26997436,599.99,597.0,1.12981363]
[1745510415894,1.27075748,600.09,597.0,2.219]
[1745510416196,0.26998182,600.08,597.01,0.30680239]
[1745510416392,0.26998182,600.08,597.02,0.30680239]
[1745510416595,0.26998182,600.08,597.03,0.30680239]
[1745510416792,0.26998182,600.08,597.04,0.30680239]
[1745510416994,0.26998182,600.08,597.05,0.30680239]
[1745510417294,0.26998182,600.08,597.06,0.30680239]
[1745510417495,0.26981504,600.07,597.07,0.30678152]
[1745510417697,0.26981504,600.06,597.08,0.30678152]
[1745510417895,0.26981504,600.08,597.09,0.30678152]
[1745510418097,0.26981504,600.07,597.1,0.30678152]
[1745510418393,0.26981504,600.06,597.11,0.30678152]
[1745510418593,0.26981504,600.08,597.12,0.30678152]
[1745510418795,0.26981504,600.05,597.12,0.30678152]
[1745510419096,0.26981504,600.04,597.13,0.30678152]
[1745510419297,1.27075748,600.09,597.14,0.30678152]
[1745510419298,0.26981504,600.08,597.14,0.30678152]
[1745510419509,0.26981504,600.07,597.66,1.05964387]
[1745510419705,0.26981504,600.39,597.67,0.30678152]
[1745510419901,0.26981504,600.38,597.67,0.30678152]
[1745510420099,0.26981504,600.37,597.67,0.30678152]
[1745510420301,0.26981504,600.36,597.67,0.30678152]
[1745510420499,1.27075748,600.4,597.66,1.05964387]
[1745510420698,0.26969997,600.39,597.67,0.30677509]
[1745510420904,0.26969997,600.38,597.67,0.30677509]
[1745510421204,0.26969997,600.37,597.67,0.30677509]
[1745510421400,0.26969997,600.36,597.67,0.30677509]
[1745510421602,0.26969997,600.35,597.67,0.30677509]
[1745510421803,0.26969997,600.34,597.67,0.30677509]
[1745510422001,0.26969997,600.39,597.67,0.30677509]
[1745510422299,0.26969997,600.38,597.67,0.30677509]
[1745510422503,0.26969997,600.37,597.75,1.05964387]
[1745510422705,1.27075748,600.63,597.75,1.05964387]
[1745510423500,0.26964964,600.36,597.75,1.05964387]
[1745510423706,0.26964964,600.35,597.76,0.30677307]
[1745510423901,0.26964964,600.34,597.76,0.30677307]
[1745510424103,0.26964964,600.33,597.76,0.30677307]
[1745510424400,0.26964964,600.32,597.77,0.30677307]
[1745510424603,0.26964964,600.71,597.69,0.30677307]
[1745510424802,0.26964964,600.31,597.78,0.30677307]
[1745510425003,0.26964964,600.3,597.79,0.30677307]
[1745510425203,0.26964964,600.71,597.69,0.30677307]
[1745510425401,0.26964964,600.7,597.7,0.30677307]
[1745510425604,0.26964964,600.69,597.69,0.30677307]
[1745510425800,1.27075748,600.72,597.68,1.05964387]
[1745510426005,0.26963956,600.71,597.69,0.30677903]
[1745510426202,2.15268639,601.65,597.69,0.30677903]
[1745510426203,0.26963956,600.7,597.69,0.30677903]
[1745510426501,0.26963956,600.69,597.7,0.30677903]
[1745510426699,0.26963956,600.68,597.66,0.30677903]
[1745510426904,0.26963956,600.68,597.67,0.30677903]
[1745510427104,0.26963956,600.67,597.66,0.30677903]
[1745510427303,0.26963956,600.66,597.67,0.30677903]
[1745510427504,0.26960117,600.65,597.68,0.30678109]
[1745510427707,0.26960117,600.64,597.66,0.30678109]
[1745510428006,0.26960117,600.63,597.67,0.30678109]
[1745510428207,0.26960117,600.62,597.66,0.30678109]
[1745510428409,1.27075748,600.55,597.72,1.05964387]
[1745510428607,0.26960117,600.54,597.73,0.30678109]
[1745510428905,0.26960117,600.53,597.73,0.30678109]
[1745510429206,0.26960117,600.52,597.73,0.30678109]
[1745510429506,0.26960117,600.51,597.73,0.30678109]
[1745510429709,0.26960117,600.5,597.73,0.30678109]
[1745510429909,0.26960117,600.49,597.73,0.30678109]
[1745510430206,0.26960117,600.48,597.73,0.30678109]
[1745510430407,0.26960117,600.47,597.73,0.30678109]
[1745510430607,0.26960117,600.46,597.73,0.30678109]
[1745510430809,0.26960117,600.45,597.73,0.30678109]
[1745510431008,0.26960117,600.44,597.73,0.30678109]
[1745510431308,0.26960117,600.43,597.73,0.30678109]
[1745510431510,0.26960117,600.42,597.73,0.30678109]
[1745510431709,0.26960117,600.41,597.74,0.30678109]
[1745510431910,0.26960117,600.4,597.75,0.30678109]
[1745510432212,0.26960117,600.39,597.76,0.30678109]
[1745510432508,0.26960117,600.38,597.77,0.30678109]
[1745510432709,0.26960117,600.37,597.78,0.30678109]
[1745510432910,0.26960117,600.36,597.89,1.05964387]
[1745510433209,0.26960117,600.35,597.9,0.30678109]
[1745510433608,0.26960117,600.34,597.91,0.30678109]
[1745510433910,0.26968035,600.33,597.92,0.30675244]
[1745510434111,0.26968035,600.32,597.93,0.30675244]
[1745510434412,0.26968035,600.31,597.94,0.30675244]
[1745510434612,0.26968035,600.3,597.95,0.30675244]
[1745510434810,0.26968035,600.29,597.96,0.30675244]
[1745510435006,0.26968035,600.28,597.9,0.30675244]
[1745510435213,0.26968035,600.27,597.91,0.30675244]
[1745510435513,1.27075748,600.15,598.02,1.05964387]
[1745510435713,0.26968035,600.14,598.03,0.30675244]
[1745510436012,0.26968035,600.13,598.03,0.30675244]
[1745510436213,0.26968035,600.14,598.03,0.30675244]
[1745510436411,0.26968035,600.13,598.03,0.30675244]
[1745510436614,0.26968035,600.12,598.03,0.30675244]
[1745510436813,1.27075748,600.15,598.02,1.05964387]
[1745510437010,0.26973743,600.14,598.03,0.30674259]
[1745510437210,0.26973743,600.13,598.03,0.30674259]
[1745510437515,0.26973743,600.12,598.03,0.30674259]
[1745510437714,0.26973743,600.11,598.04,0.30674259]
[1745510437915,1.27075748,600.5,598.05,0.30674259]
[1745510437916,0.26973743,600.1,598.05,0.30674259]
[1745510438115,0.26973743,600.09,598.06,0.30674259]
[1745510438320,0.26973743,600.08,598.07,0.30674259]
[1745510438517,0.26973743,600.07,598.08,0.30674259]
[1745510438718,0.26973743,600.06,598.09,0.30674259]
[1745510438918,0.26973743,600.05,598.1,0.30674259]
[1745510439114,0.26973743,600.04,598.11,0.30674259]
[1745510439314,0.26973743,600.03,597.86,0.30674259]
[1745510439517,0.26973743,600.02,597.87,0.30674259]
[1745510439718,0.26973743,600.01,597.88,0.30674259]
[1745510439919,0.26973743,600.01,597.41,1.06177866]
[1745510439920,0.26973743,600.0,598.12,1.05964387]
[1745510440219,1.27075748,600.17,598.12,1.05964387]
[1745510440519,0.26972768,600.16,598.13,0.30673821]
[1745510440820,0.26972768,600.15,598.13,0.30673821]
[1745510441021,0.26972768,600.14,598.13,0.30673821]
[1745510441218,0.26972768,600.13,598.13,0.30673821]
[1745510441423,0.26972768,600.12,598.13,0.30673821]
[1745510441620,0.26972768,600.12,598.12,1.05964387]
[1745510441621,1.27075748,600.17,598.12,1.05964387]
[1745510441816,0.26969387,600.16,598.13,0.30675165]
[1745510442020,0.26969387,600.15,598.13,0.30675165]
[1745510442224,1.27075748,600.09,598.13,0.30675165]
[1745510442520,1.27075748,600.09,598.11,1.05964387]
[1745510442721,0.26971242,600.08,598.12,0.30677491]
[1745510442918,0.26971242,600.07,598.12,0.30677491]
[1745510443117,0.26971242,600.06,598.12,0.30677491]
[1745510443322,0.26971242,600.05,598.12,0.30677491]
[1745510443622,0.26971242,600.04,598.12,0.30677491]
[1745510443822,0.26971242,600.03,598.12,0.30677491]
[1745510444024,0.26971242,600.02,598.12,0.30677491]
[1745510444319,0.26971242,600.01,598.13,0.30677491]
[1745510444623,0.26971242,600.0,598.14,0.30677491]
[1745510444823,1.27075748,600.1,598.15,0.30677452]
[1745510445017,0.2697125,600.09,598.16,0.30677452]
[1745510445220,0.2697125,600.08,598.17,0.30677452]
[1745510445420,0.2697125,600.07,598.18,0.30677452]
[1745510445618,0.2697125,600.06,598.03,0.30677452]
[1745510445821,0.2697125,600.05,598.04,0.30677452]
[1745510446023,0.2697125,600.04,598.03,0.30677452]
[1745510446323,1.27075748,600.1,598.02,1.05964387]
[1745510446524,1.27075748,600.07,598.06,1.05964387]
[1745510446722,0.26967358,600.06,598.07,0.30676779]
[1745510447018,0.26967358,600.05,598.07,0.30676779]
[1745510447223,0.26967358,600.04,598.07,0.30676779]
[1745510447429,0.26967358,600.03,598.07,0.30676779]
[1745510447624,0.26967358,600.02,598.07,0.30676779]
[1745510447830,0.26967358,600.01,598.07,0.30676779]
[1745510448025,0.26967358,600.0,598.07,0.30676779]
[1745510448328,0.26967358,599.99,598.07,0.30676779]
[1745510448530,0.26967358,600.06,598.07,0.30676779]
[1745510448729,0.26967358,600.06,598.1,1.05964387]
[1745510448929,0.26967358,600.09,598.11,0.30676779]
[1745510449129,0.26967358,600.08,598.11,0.30676779]
[1745510449325,1.27075748,600.1,598.12,0.30673344]
[1745510449629,1.27075748,600.1,598.1,1.05964387]
[1745510449630,0.26967327,600.09,598.13,0.30673344]
[1745510449826,0.26967327,600.09,598.14,0.30673344]
[1745510450029,0.26967327,600.09,598.15,0.30673344]
[1745510450227,0.26967327,600.09,598.16,0.30673344]
[1745510450531,0.26967327,600.09,598.17,0.30673344]
[1745510450731,0.26967327,600.09,598.11,0.30673344]
[1745510451031,0.26967327,600.09,598.12,0.30673344]
[1745510451326,0.26967327,600.08,598.13,0.30673344]
[1745510451629,0.26967327,600.07,598.14,0.30673344]
[1745510451831,0.26967327,600.46,598.15,0.30673344]
[1745510452130,0.26967327,600.46,598.0,1.05964387]
[1745510452131,0.26967327,600.45,598.16,0.30673344]
[1745510452332,0.26965985,600.44,598.17,0.30673518]
[1745510452532,0.26965985,600.43,598.01,0.30673518]
[1745510452727,0.26965985,600.42,598.02,0.30673518]
[1745510452927,0.26965985,600.41,598.01,0.30673518]
[1745510453227,0.26965985,600.4,598.02,0.30673518]
[1745510453427,0.26965985,600.39,598.01,0.30673518]
[1745510453733,1.27075748,600.47,598.0,1.05964387]